[Event "Goteborg Open 2024"]
[Site "Goteborgs Schackcentrum, Vegatan 20, Gothenburg, Sweden"]
[Date "2024.08.02"]
[Round "4.16"]
[White "Johansson, Eva"]
[Black "Murugaraja, Yogeshwer"]
[Result "1-0"]
[TimeControl "15 minutes + 5 seconds per move from move one (Round 1 - 4) / 90 minutes + 30 seconds per move from move one (Round 5 - 8)"]
[WhiteFideId "1724584"]
[BlackFideId "1779389"]
[WhiteElo "1878"]
[BlackElo "1628"]

1. d4 {[%clk 00:15:09]} Nf6 {[%clk 00:15:09]} {[%emt 00:00:02]} 2. c4 {[%clk
00:15:12]} {[%emt 00:00:02]} g6 {[%clk 00:15:13]} {[%emt 00:00:01]} 3. Nf3
{[%clk 00:15:15]} {[%emt 00:00:02]} Bg7 {[%clk 00:15:14]} {[%emt 00:00:04]} 4.
g3 {[%clk 00:15:18]} {[%emt 00:00:02]} O-O {[%clk 00:15:13]} {[%emt 00:00:04]}
5. Bg2 {[%clk 00:15:22]} d6 {[%clk 00:15:08]} {[%emt 00:00:13]} 6. O-O {[%clk
00:15:22]} {[%emt 00:00:04]} Nbd7 {[%clk 00:15:05]} {[%emt 00:00:09]} 7. Nc3
{[%clk 00:15:05]} {[%emt 00:00:21]} e5 {[%clk 00:14:52]} {[%emt 00:00:18]} 8.
Bg5 {[%clk 00:14:03]} {[%emt 00:01:07]} h6 {[%clk 00:14:34]} {[%emt 00:00:24]}
9. Be3 {[%clk 00:13:50]} {[%emt 00:00:18]} Ng4 {[%clk 00:13:55]} {[%emt
00:00:44]} 10. Bc1 {[%clk 00:13:53]} {[%emt 00:00:02]} Re8 {[%clk 00:13:15]}
{[%emt 00:00:44]} 11. e4 {[%clk 00:11:34]} {[%emt 00:02:24]} exd4 {[%clk
00:12:45]} {[%emt 00:00:36]} 12. Nxd4 {[%clk 00:11:37]} {[%emt 00:00:02]} Ngf6
{[%clk 00:11:54]} {[%emt 00:00:56]} 13. h3 {[%clk 00:09:53]} {[%emt 00:01:49]}
Nc5 {[%clk 00:11:20]} {[%emt 00:00:39]} 14. Re1 {[%clk 00:09:36]} {[%emt
00:00:21]} Ne6 {[%clk 00:10:14]} {[%emt 00:01:12]} 15. Be3 {[%clk 00:08:50]}
{[%emt 00:00:50]} Bd7 {[%clk 00:09:03]} {[%emt 00:01:17]} 16. Rc1 {[%clk
00:08:44]} {[%emt 00:00:11]} Qc8 {[%clk 00:08:40]} {[%emt 00:00:28]} 17. Kh2
{[%clk 00:08:35]} {[%emt 00:00:14]} Nc5 {[%clk 00:08:17]} {[%emt 00:00:28]} 18.
Qc2 {[%clk 00:07:44]} {[%emt 00:00:56]} a6 {[%clk 00:07:19]} {[%emt 00:01:04]}
19. b4 {[%clk 00:06:36]} {[%emt 00:01:12]} Ne6 {[%clk 00:07:04]} {[%emt
00:00:20]} 20. Nxe6 {[%clk 00:06:38]} {[%emt 00:00:03]} Bxe6 {[%clk 00:07:06]}
{[%emt 00:00:02]} 21. Nd5 {[%clk 00:06:40]} {[%emt 00:00:03]} Qd8 {[%clk
00:06:16]} {[%emt 00:00:56]} 22. Red1 {[%clk 00:05:43]} {[%emt 00:01:02]} Bxd5
{[%clk 00:05:41]} {[%emt 00:00:40]} 23. cxd5 {[%clk 00:05:39]} {[%emt
00:00:09]} Rc8 {[%clk 00:05:20]} {[%emt 00:00:25]} 24. Qc4 {[%clk 00:04:32]}
{[%emt 00:01:10]} Qe7 {[%clk 00:04:53]} {[%emt 00:00:35]} 25. f3 {[%clk
00:04:11]} {[%emt 00:00:27]} Nd7 {[%clk 00:03:58]} {[%emt 00:00:59]} 26. Re1
{[%clk 00:03:24]} {[%emt 00:00:52]} Ne5 {[%clk 00:03:50]} {[%emt 00:00:12]} 27.
Qe2 {[%clk 00:03:14]} {[%emt 00:00:15]} Rf8 {[%clk 00:02:44]} {[%emt 00:01:11]}
28. f4 {[%clk 00:02:49]} {[%emt 00:00:29]} Nd7 {[%clk 00:02:39]} {[%emt
00:00:13]} 29. Qd3 {[%clk 00:02:46]} {[%emt 00:00:06]} f5 {[%clk 00:02:14]}
{[%emt 00:00:31]} 30. Bd4 {[%clk 00:02:43]} {[%emt 00:00:08]} Qf7 {[%clk
00:01:17]} {[%emt 00:01:02]} 31. exf5 {[%clk 00:02:33]} {[%emt 00:00:14]} Qxf5
{[%clk 00:01:20]} {[%emt 00:00:03]} 32. Be4 {[%clk 00:02:35]} {[%emt 00:00:03]}
Qf7 {[%clk 00:01:05]} {[%emt 00:00:20]} 33. Bxg6 {[%clk 00:02:35]} {[%emt
00:00:04]} Qxd5 {[%clk 00:01:04]} {[%emt 00:00:07]} 34. Bh7+ {[%clk 00:02:22]}
{[%emt 00:00:18]} Kh8 {[%clk 00:00:56]} {[%emt 00:00:13]} 35. Bxg7+ {[%clk
00:02:24]} {[%emt 00:00:02]} Kxg7 {[%clk 00:00:59]} {[%emt 00:00:03]} 36. Qxd5
{[%clk 00:02:29]} {[%emt 00:00:01]} 1-0

[Event "Goteborg Open 2024"]
[Site "Goteborgs Schackcentrum, Vegatan 20, Gothenburg, Sweden"]
[Date "2024.08.02"]
[Round "4.17"]
[White "Torres, Lucas"]
[Black "Israelsson, Lukas"]
[Result "0-1"]
[TimeControl "15 minutes + 5 seconds per move from move one (Round 1 - 4) / 90 minutes + 30 seconds per move from move one (Round 5 - 8)"]
[WhiteFideId "1769464"]
[BlackFideId "1784749"]
[WhiteElo "1861"]
[BlackElo "1615"]

1. e4 {[%clk 00:15:09]} c6 {[%clk 00:15:08]} {[%emt 00:00:03]} 2. Nc3 {[%clk
00:15:10]} {[%emt 00:00:03]} d5 {[%clk 00:15:12]} {[%emt 00:00:01]} 3. Nf3
{[%clk 00:15:14]} {[%emt 00:00:01]} dxe4 {[%clk 00:15:13]} {[%emt 00:00:03]} 4.
Nxe4 {[%clk 00:15:17]} {[%emt 00:00:02]} Nf6 {[%clk 00:15:13]} {[%emt
00:00:05]} 5. Qe2 {[%clk 00:15:20]} {[%emt 00:00:02]} Nxe4 {[%clk 00:15:09]}
{[%emt 00:00:10]} 6. Qxe4 {[%clk 00:15:23]} {[%emt 00:00:02]} Qd5 {[%clk
00:15:12]} {[%emt 00:00:01]} 7. d3 {[%clk 00:14:48]} {[%emt 00:00:40]} Bf5
{[%clk 00:14:50]} {[%emt 00:00:27]} 8. Qxd5 {[%clk 00:14:23]} {[%emt 00:00:30]}
cxd5 {[%clk 00:14:53]} {[%emt 00:00:03]} 9. g3 {[%clk 00:14:24]} {[%emt
00:00:03]} Nd7 {[%clk 00:14:52]} {[%emt 00:00:06]} 10. Bg2 {[%clk 00:14:27]}
{[%emt 00:00:03]} Rc8 {[%clk 00:14:54]} {[%emt 00:00:04]} 11. O-O {[%clk
00:14:04]} {[%emt 00:00:27]} e5 {[%clk 00:14:36]} {[%emt 00:00:23]} 12. Re1
{[%clk 00:14:05]} {[%emt 00:00:03]} Bd6 {[%clk 00:14:31]} {[%emt 00:00:10]} 13.
Bf4 {[%clk 00:13:16]} {[%emt 00:00:54]} f6 {[%clk 00:14:14]} {[%emt 00:00:22]}
14. d4 {[%clk 00:12:54]} {[%emt 00:00:29]} O-O {[%clk 00:14:05]} {[%emt
00:00:13]} 15. dxe5 {[%clk 00:12:53]} {[%emt 00:00:06]} fxe5 {[%clk 00:14:07]}
{[%emt 00:00:03]} 16. Bxe5 {[%clk 00:12:39]} {[%emt 00:00:18]} Bxe5 {[%clk
00:13:56]} {[%emt 00:00:16]} 17. Nxe5 {[%clk 00:12:41]} {[%emt 00:00:04]} Nb6
{[%clk 00:13:44]} {[%emt 00:00:17]} 18. c3 {[%clk 00:12:38]} {[%emt 00:00:08]}
Rfd8 {[%clk 00:13:18]} {[%emt 00:00:31]} 19. Rad1 {[%clk 00:12:31]} {[%emt
00:00:12]} Rc5 {[%clk 00:12:29]} {[%emt 00:00:53]} 20. Rd2 {[%clk 00:11:23]}
{[%emt 00:01:14]} h6 {[%clk 00:11:02]} {[%emt 00:01:31]} 21. Red1 {[%clk
00:10:58]} {[%emt 00:00:29]} Be6 {[%clk 00:11:06]} {[%emt 00:00:02]} 22. f4
{[%clk 00:10:35]} {[%emt 00:00:28]} Ra5 {[%clk 00:10:14]} {[%emt 00:00:57]} 23.
b4 {[%clk 00:10:18]} {[%emt 00:00:23]} Ra3 {[%clk 00:09:49]} {[%emt 00:00:30]}
24. c4 {[%clk 00:09:51]} {[%emt 00:00:32]} d4 {[%clk 00:09:05]} {[%emt
00:00:49]} 25. Rxd4 {[%clk 00:08:10]} {[%emt 00:01:46]} Rxd4 {[%clk 00:09:08]}
{[%emt 00:00:02]} 26. Rxd4 {[%clk 00:08:14]} Rxa2 {[%clk 00:09:07]} {[%emt
00:00:06]} 27. Rd8+ {[%clk 00:08:13]} {[%emt 00:00:05]} Kh7 {[%clk 00:09:06]}
{[%emt 00:00:06]} 28. Be4+ {[%clk 00:08:09]} {[%emt 00:00:10]} g6 {[%clk
00:09:09]} {[%emt 00:00:02]} 29. Nxg6 {[%clk 00:07:01]} {[%emt 00:01:12]} Ra1+
{[%clk 00:08:56]} {[%emt 00:00:18]} 30. Kf2 {[%clk 00:06:44]} {[%emt 00:00:22]}
Ra2+ {[%clk 00:08:55]} {[%emt 00:00:06]} 31. Ke1 {[%clk 00:06:22]} {[%emt
00:00:28]} Bxc4 {[%clk 00:08:35]} {[%emt 00:00:25]} 32. Ne5+ {[%clk 00:05:20]}
{[%emt 00:01:06]} Kg7 {[%clk 00:08:35]} {[%emt 00:00:05]} 33. Nxc4 {[%clk
00:05:20]} {[%emt 00:00:06]} Nxc4 {[%clk 00:08:31]} {[%emt 00:00:08]} 34. Rd7+
{[%clk 00:05:16]} {[%emt 00:00:09]} Kf6 {[%clk 00:08:24]} {[%emt 00:00:11]} 35.
Rh7 {[%clk 00:03:49]} {[%emt 00:01:34]} Rxh2 {[%clk 00:07:48]} {[%emt
00:00:40]} 36. g4 {[%clk 00:03:09]} {[%emt 00:00:45]} Nd6 {[%clk 00:06:46]}
{[%emt 00:01:09]} 37. Bd3 {[%clk 00:01:07]} {[%emt 00:02:05]} Ke6 {[%clk
00:04:35]} {[%emt 00:02:17]} 38. g5 {[%clk 00:00:27]} {[%emt 00:00:46]} h5
{[%clk 00:04:00]} {[%emt 00:00:40]} 0-1

[Event "Goteborg Open 2024"]
[Site "Goteborgs Schackcentrum, Vegatan 20, Gothenburg, Sweden"]
[Date "2024.08.02"]
[Round "4.18"]
[White "Lindholm, Marcus"]
[Black "Eklund, Rickard"]
[Result "1-0"]
[TimeControl "15 minutes + 5 seconds per move from move one (Round 1 - 4) / 90 minutes + 30 seconds per move from move one (Round 5 - 8)"]
[WhiteFideId "1743473"]
[BlackFideId "1789040"]
[WhiteElo "1851"]
[BlackElo "1595"]

1. d4 {[%clk 00:15:08]} {[%emt 00:00:03]} d5 {[%clk 00:15:08]} {[%emt
00:00:03]} 2. c4 {[%clk 00:15:11]} c6 {[%clk 00:15:10]} {[%emt 00:00:04]} 3.
Nc3 {[%clk 00:15:14]} {[%emt 00:00:02]} e6 {[%clk 00:15:12]} {[%emt 00:00:03]}
4. cxd5 {[%clk 00:14:30]} {[%emt 00:00:49]} exd5 {[%clk 00:15:03]} {[%emt
00:00:04]} 5. Nf3 {[%clk 00:14:25]} {[%emt 00:00:20]} Nf6 {[%clk 00:15:04]}
{[%emt 00:00:05]} 6. Bg5 {[%clk 00:14:27]} {[%emt 00:00:02]} Be7 {[%clk
00:15:07]} {[%emt 00:00:01]} 7. e3 {[%clk 00:14:26]} {[%emt 00:00:06]} O-O
{[%clk 00:14:43]} {[%emt 00:00:30]} 8. Bd3 {[%clk 00:14:21]} {[%emt 00:00:10]}
h6 {[%clk 00:13:34]} {[%emt 00:01:13]} 9. Bh4 {[%clk 00:14:12]} {[%emt
00:00:14]} Bg4 {[%clk 00:12:37]} {[%emt 00:01:02]} 10. h3 {[%clk 00:14:02]}
{[%emt 00:00:15]} Bh5 {[%clk 00:12:38]} {[%emt 00:00:06]} 11. Qc2 {[%clk
00:14:03]} {[%emt 00:00:03]} Nbd7 {[%clk 00:12:27]} {[%emt 00:00:15]} 12. g4
{[%clk 00:13:56]} {[%emt 00:00:12]} Bg6 {[%clk 00:12:19]} {[%emt 00:00:13]} 13.
Bxg6 {[%clk 00:13:49]} {[%emt 00:00:12]} fxg6 {[%clk 00:12:23]} 14. Qxg6 {[%clk
00:13:15]} {[%emt 00:00:40]} Qa5 {[%clk 00:12:04]} {[%emt 00:00:24]} 15. g5
{[%clk 00:12:09]} {[%emt 00:01:11]} Ne4 {[%clk 00:11:47]} {[%emt 00:00:22]} 16.
gxh6 {[%clk 00:12:03]} {[%emt 00:00:12]} Rf7 {[%clk 00:11:18]} {[%emt
00:00:33]} 17. h7+ {[%clk 00:11:53]} {[%emt 00:00:15]} Kh8 {[%clk 00:11:20]}
{[%emt 00:00:03]} 18. Qxf7 {[%clk 00:11:55]} {[%emt 00:00:03]} Bxh4 {[%clk
00:11:18]} {[%emt 00:00:07]} 19. Nxh4 {[%clk 00:11:53]} {[%emt 00:00:09]} Nxc3
{[%clk 00:11:21]} {[%emt 00:00:01]} 20. O-O {[%clk 00:11:24]} {[%emt 00:00:34]}
Nf6 {[%clk 00:10:59]} {[%emt 00:00:27]} 21. Nf5 {[%clk 00:11:05]} {[%emt
00:00:24]} Ne2+ {[%clk 00:10:41]} {[%emt 00:00:23]} 22. Kh1 {[%clk 00:11:00]}
{[%emt 00:00:09]} 1-0

[Event "Goteborg Open 2024"]
[Site "Goteborgs Schackcentrum, Vegatan 20, Gothenburg, Sweden"]
[Date "2024.08.02"]
[Round "4.20"]
[White "Thern, Alfred"]
[Black "Shchetinin, Oleg"]
[Result "1-0"]
[TimeControl "15 minutes + 5 seconds per move from move one (Round 1 - 4) / 90 minutes + 30 seconds per move from move one (Round 5 - 8)"]
[WhiteFideId "1775227"]
[BlackFideId "1740210"]
[WhiteElo "1729"]
[BlackElo "1742"]

1. d4 {[%clk 00:15:07]} {[%emt 00:00:04]} d5 {[%clk 00:15:01]} {[%emt
00:00:10]} 2. Bf4 {[%clk 00:14:57]} {[%emt 00:00:14]} Bf5 {[%clk 00:14:19]}
{[%emt 00:00:47]} 3. Nf3 {[%clk 00:14:57]} {[%emt 00:00:06]} e6 {[%clk
00:14:22]} {[%emt 00:00:02]} 4. e3 {[%clk 00:14:56]} {[%emt 00:00:05]} c5
{[%clk 00:14:21]} {[%emt 00:00:06]} 5. c3 {[%clk 00:14:19]} {[%emt 00:00:43]}
Nc6 {[%clk 00:14:09]} {[%emt 00:00:17]} 6. Qb3 {[%clk 00:13:59]} {[%emt
00:00:24]} Qb6 {[%clk 00:14:01]} {[%emt 00:00:14]} 7. Nbd2 {[%clk 00:13:39]}
{[%emt 00:00:24]} c4 {[%clk 00:13:45]} {[%emt 00:00:21]} 8. Qxb6 {[%clk
00:13:35]} {[%emt 00:00:09]} axb6 {[%clk 00:13:48]} {[%emt 00:00:02]} 9. Nh4
{[%clk 00:13:24]} {[%emt 00:00:15]} Nge7 {[%clk 00:12:41]} {[%emt 00:01:13]} 10.
Nxf5 Nxf5 {[%clk 00:12:44]} 11. f3 {[%clk 00:12:25]} {[%emt 00:01:02]} Bd6
{[%clk 00:11:13]} {[%emt 00:01:35]} 12. Bxd6 {[%clk 00:12:15]} {[%emt
00:00:17]} Nxd6 {[%clk 00:11:16]} {[%emt 00:00:02]} 13. Kf2 {[%clk 00:12:13]}
{[%emt 00:00:07]} b5 {[%clk 00:11:01]} {[%emt 00:00:20]} 14. a3 {[%emt
00:01:06]} O-O {[%emt 00:00:06]} 15. Be2 {[%emt 00:00:30]} Rfe8 {[%clk
00:09:55]} {[%emt 00:00:02]} 16. Bd1 {[%clk 00:10:58]} {[%emt 00:00:51]} e5 17.
Bc2 {[%emt 00:02:11]} exd4 {[%clk 00:07:16]} {[%emt 00:00:53]} 18. exd4 {[%emt
00:00:23]} g6 {[%emt 00:01:12]} 19. g4 {[%emt 00:00:55]} Re7 {[%clk 00:06:07]}
{[%emt 00:00:03]} 20. Rhe1 {[%emt 00:01:03]} Rae8 21. Rxe7 {[%clk 00:09:04]}
Rxe7 {[%emt 00:00:27]} 22. Nf1 {[%emt 00:01:08]} Kg7 {[%emt 00:00:13]} 23. Ne3
{[%clk 00:08:25]} {[%emt 00:01:21]} Re6 24. Nxd5 {[%emt 00:01:17]} Re8 {[%emt
00:01:04]} 25. a4 {[%clk 00:07:48]} {[%emt 00:00:09]} bxa4 {[%clk 00:02:11]}
{[%emt 00:00:20]} 26. Rxa4 {[%clk 00:07:30]} {[%emt 00:00:23]} Ne7 {[%clk
00:01:36]} {[%emt 00:00:41]} 27. Nb6 {[%clk 00:07:07]} {[%emt 00:00:27]} f5
{[%clk 00:01:22]} {[%emt 00:00:19]} 28. Nxc4 {[%clk 00:06:53]} {[%emt
00:00:19]} Nxc4 {[%clk 00:01:22]} {[%emt 00:00:05]} 29. Rxc4 {[%clk 00:06:57]}
{[%emt 00:00:01]} fxg4 {[%clk 00:01:25]} {[%emt 00:00:03]} 30. Rc7 {[%clk
00:05:37]} {[%emt 00:01:25]} Kf6 {[%clk 00:01:07]} {[%emt 00:00:22]} 31. Rxb7
{[%clk 00:05:32]} {[%emt 00:00:10]} gxf3 {[%clk 00:01:11]} {[%emt 00:00:02]} 32.
Be4 {[%clk 00:05:21]} {[%emt 00:00:15]} Kg5 {[%clk 00:00:42]} {[%emt 00:01:05]}
33. Bxf3 {[%emt 00:00:36]} Kf4 34. d5 {[%clk 00:04:29]} {[%emt 00:00:01]} h5
{[%clk 00:00:45]} {[%emt 00:00:02]} 35. d6 {[%clk 00:04:24]} {[%emt 00:00:10]}
Nf5 {[%clk 00:00:42]} {[%emt 00:00:08]} 36. d7 {[%clk 00:04:01]} {[%emt
00:00:28]} Rd8 {[%clk 00:00:46]} 37. c4 {[%clk 00:03:43]} {[%emt 00:00:24]} Nd6
{[%clk 00:00:49]} {[%emt 00:00:02]} 38. Rc7 {[%clk 00:03:43]} {[%emt 00:00:05]}
g5 {[%clk 00:00:40]} {[%emt 00:00:14]} 39. c5 {[%clk 00:03:39]} {[%emt
00:00:08]} Ne4+ {[%clk 00:00:42]} {[%emt 00:00:02]} 40. Bxe4 Kxe4 {[%clk
00:00:47]} 41. c6 {[%clk 00:03:42]} {[%emt 00:00:02]} Rf8+ {[%clk 00:00:46]}
{[%emt 00:00:06]} 42. Kg2 {[%clk 00:03:45]} {[%emt 00:00:02]} h4 {[%clk
00:00:40]} {[%emt 00:00:11]} 43. Rc8 {[%clk 00:03:44]} {[%emt 00:00:06]} g4
{[%clk 00:00:34]} {[%emt 00:00:12]} 44. Rxf8 {[%clk 00:03:41]} {[%emt
00:00:08]} 1-0

[Event "Goteborg Open 2024"]
[Site "Goteborgs Schackcentrum, Vegatan 20, Gothenburg, Sweden"]
[Date "2024.08.02"]
[Round "4.21"]
[White "Dahlin, Emil"]
[Black "Saleh, Saqr"]
[Result "1-0"]
[TimeControl "15 minutes + 5 seconds per move from move one (Round 1 - 4) / 90 minutes + 30 seconds per move from move one (Round 5 - 8)"]
[WhiteFideId "1771035"]
[BlackFideId "1785877"]
[WhiteElo "1719"]
[BlackElo "1835"]

1. e4 {[%emt 00:00:02]} e6 2. d4 {[%clk 00:15:06]} d5 {[%clk 00:15:07]} 3. e5
{[%clk 00:15:13]} {[%emt 01:59:29]} c5 {[%clk 00:15:03]} 4. c3 {[%clk
00:15:17]} {[%emt 00:00:02]} Nc6 {[%clk 00:15:06]} 5. Nf3 {[%clk 00:15:11]}
{[%emt 00:00:13]} Qb6 {[%clk 00:15:09]} 6. Bd3 {[%clk 00:15:07]} {[%emt
00:00:10]} cxd4 {[%clk 00:15:13]} 7. O-O {[%clk 00:15:10]} {[%emt 00:00:03]}
Nge7 {[%clk 00:13:50]} 8. cxd4 {[%clk 00:14:53]} {[%emt 00:01:51]} Ng6 {[%clk
00:13:51]} 9. Re1 {[%clk 00:14:32]} {[%emt 00:00:29]} Bd7 {[%clk 00:13:31]} 10.
Bxg6 {[%clk 00:13:43]} {[%emt 00:01:18]} hxg6 {[%clk 00:13:35]} 11. Nc3 {[%clk
00:12:24]} {[%emt 00:01:26]} 1-0

[Event "Goteborg Open 2024"]
[Site "Goteborgs Schackcentrum, Vegatan 20, Gothenburg, Sweden"]
[Date "2024.08.03"]
[Round "5.1"]
[White "Degerfeldt, Sven"]
[Black "Rasti, Arvin"]
[Result "0-1"]
[TimeControl "15 minutes + 5 seconds per move from move one (Round 1 - 4) / 90 minutes + 30 seconds per move from move one (Round 5 - 8)"]
[BlackTitle "FM"]
[WhiteFideId "1717430"]
[BlackFideId "1741160"]
[WhiteElo "1902"]
[BlackElo "2195"]

1. d4 {[%clk 01:27:32]} {[%emt 00:03:27]} Nf6 {[%clk 01:30:22]} {[%emt
00:00:38]} 2. c4 {[%clk 01:27:54]} {[%emt 00:00:08]} g6 {[%clk 01:29:32]}
{[%emt 00:01:21]} 3. Nc3 {[%clk 01:27:58]} {[%emt 00:00:25]} Bg7 {[%clk
01:29:55]} {[%emt 00:00:07]} 4. g3 {[%clk 01:25:20]} {[%emt 00:03:07]} O-O
{[%clk 01:30:19]} {[%emt 00:00:07]} 5. Bg2 {[%clk 01:25:44]} {[%emt 00:00:06]}
d6 {[%clk 01:30:29]} {[%emt 00:00:20]} 6. e4 {[%clk 01:24:27]} {[%emt
00:01:47]} Nc6 {[%clk 01:26:42]} {[%emt 00:04:17]} 7. Nge2 {[%clk 01:24:16]}
{[%emt 00:00:41]} e5 {[%clk 01:26:20]} {[%emt 00:00:52]} 8. d5 {[%clk
01:24:14]} {[%emt 00:00:32]} Nd4 {[%clk 01:25:49]} {[%emt 00:01:01]} 9. O-O
{[%clk 01:19:17]} {[%emt 00:05:27]} c5 {[%clk 01:15:47]} {[%emt 00:10:33]} 10.
f3 {[%clk 01:18:46]} {[%emt 00:01:00]} a6 {[%clk 01:14:26]} {[%emt 00:01:52]}
11. Nxd4 {[%clk 01:07:59]} {[%emt 00:11:16]} cxd4 {[%clk 01:12:19]} {[%emt
00:02:38]} 12. Ne2 {[%clk 01:08:16]} {[%emt 00:00:12]} Re8 {[%clk 01:11:44]}
{[%emt 00:01:05]} 13. Bg5 {[%clk 01:05:52]} {[%emt 00:02:54]} Qb6 {[%clk
01:11:50]} {[%emt 00:00:25]} 14. Kh1 {[%clk 01:03:15]} {[%emt 00:03:06]} Qxb2
{[%clk 01:10:31]} {[%emt 00:01:49]} 15. Bxf6 {[%clk 01:03:25]} {[%emt
00:00:19]} Bxf6 {[%clk 01:10:52]} {[%emt 00:00:10]} 16. Qd3 {[%clk 01:03:45]}
{[%emt 00:00:09]} Qb4 {[%clk 01:09:32]} {[%emt 00:01:50]} 17. Rab1 {[%clk
01:02:12]} {[%emt 00:02:04]} Qc5 {[%clk 01:09:35]} {[%emt 00:00:28]} 18. f4
{[%clk 00:58:08]} {[%emt 00:04:34]} Bg7 {[%clk 01:08:46]} {[%emt 00:01:18]} 19.
fxe5 {[%clk 00:53:04]} {[%emt 00:05:34]} dxe5 {[%clk 01:08:39]} {[%emt
00:00:38]} 20. Nc1 {[%clk 00:53:15]} {[%emt 00:00:18]} Qc7 {[%clk 01:07:13]}
{[%emt 00:01:57]} 21. Nb3 {[%clk 00:53:29]} {[%emt 00:00:15]} b6 {[%clk
01:07:30]} {[%emt 00:00:13]} 22. Rfc1 {[%clk 00:52:28]} {[%emt 00:01:31]} Bf8
{[%clk 01:07:50]} {[%emt 00:00:10]} 23. Rc2 {[%clk 00:50:14]} {[%emt 00:02:44]}
a5 {[%clk 01:06:19]} {[%emt 00:02:02]} 24. Rf2 {[%clk 00:39:33]} {[%emt
00:11:10]} Ba6 {[%clk 01:04:37]} {[%emt 00:02:13]} 25. Nd2 {[%clk 00:39:45]}
{[%emt 00:00:17]} Bg7 {[%clk 01:02:32]} {[%emt 00:02:35]} 26. Rbf1 {[%clk
00:38:42]} {[%emt 00:01:33]} Rf8 {[%clk 01:01:37]} {[%emt 00:01:25]} 27. Bh3
{[%clk 00:37:44]} {[%emt 00:01:28]} Bc8 {[%clk 00:59:00]} {[%emt 00:03:07]} 28.
Bxc8 {[%clk 00:35:37]} {[%emt 00:02:37]} Raxc8 {[%clk 00:59:30]} {[%emt
00:00:01]} 29. Rc1 {[%clk 00:34:59]} {[%emt 00:01:07]} Qd6 {[%clk 00:59:01]}
{[%emt 00:00:59]} 30. Rc2 {[%clk 00:27:55]} {[%emt 00:07:34]} Rc7 {[%clk
00:59:02]} {[%emt 00:00:30]} 31. h4 {[%clk 00:22:22]} {[%emt 00:06:01]} Rfc8
{[%clk 00:58:26]} {[%emt 00:01:07]} 32. Nf3 {[%clk 00:20:31]} {[%emt 00:02:21]}
Bh6 {[%clk 00:55:37]} {[%emt 00:03:19]} 33. Ng5 {[%clk 00:20:16]} {[%emt
00:00:45]} Qd8 {[%clk 00:55:12]} {[%emt 00:00:56]} 34. Nf3 {[%clk 00:19:02]}
{[%emt 00:01:43]} Qe7 {[%clk 00:55:07]} {[%emt 00:00:35]} 35. a3 {[%clk
00:19:07]} {[%emt 00:00:25]} Be3 {[%clk 00:54:45]} {[%emt 00:00:52]} 36. Rg2
{[%clk 00:19:03]} {[%emt 00:00:34]} h5 {[%clk 00:52:41]} {[%emt 00:02:35]} 37.
Nh2 {[%clk 00:17:53]} {[%emt 00:01:39]} b5 {[%clk 00:49:51]} {[%emt 00:03:20]}
38. cxb5 {[%clk 00:17:26]} {[%emt 00:00:57]} Rc3 {[%clk 00:50:20]} {[%emt
00:00:02]} 39. Qd1 {[%clk 00:16:19]} {[%emt 00:01:35]} d3 {[%clk 00:50:19]}
{[%emt 00:00:32]} 40. Rxc3 {[%clk 00:16:06]} {[%emt 00:00:43]} Rxc3 {[%clk
00:50:48]} {[%emt 00:00:02]} 41. Nf1 {[%clk 00:15:55]} {[%emt 00:00:39]} Bb6
{[%clk 00:51:13]} {[%emt 00:00:06]} 42. Kh2 {[%clk 00:12:09]} {[%emt 00:04:15]}
Qc5 {[%clk 00:50:50]} {[%emt 00:00:54]} 43. g4 {[%clk 00:09:53]} {[%emt
00:02:46]} Rc2 {[%clk 00:50:24]} {[%emt 00:00:56]} 44. Qf3 {[%clk 00:09:24]}
{[%emt 00:00:58]} Qg1+ {[%clk 00:50:28]} {[%emt 00:00:27]} 45. Kh3 {[%clk
00:09:29]} {[%emt 00:00:26]} Rxg2 {[%clk 00:49:59]} {[%emt 00:00:58]} 46. Qxg2
{[%clk 00:09:48]} {[%emt 00:00:10]} hxg4+ {[%clk 00:50:28]} {[%emt 00:00:01]}
47. Kg3 {[%clk 00:10:02]} {[%emt 00:00:15]} Bf2+ {[%clk 00:50:57]} {[%emt
00:00:02]} 0-1